[Event "*** Titled Tuesday 3|2 Blitz"]
[Site "Chess.com"]
[Date "2016.07.05"]
[Round "9"]
[White "Superfelix"]
[Black "vellottiwizard"]
[Result "0-1"]
[WhiteElo "2331"]
[BlackElo "2503"]
[TimeControl "180+2"]
[EndTime "18:48:29 PDT"]
[Termination "vellottiwizard won by resignation"]

1. e4 {[%clk 0:03:01.9]} 1... a6 {[%clk 0:03:00.6]} 2. d4 {[%clk 0:03:02.7]}
2... b5 {[%clk 0:02:59.6]} 3. Nf3 {[%clk 0:03:03.8]} 3... Bb7 {[%clk 0:03:00.6]}
4. Bd3 {[%clk 0:03:05.4]} 4... e6 {[%clk 0:02:58.7]} 5. O-O {[%clk 0:03:05.9]}
5... Nf6 {[%clk 0:02:59.7]} 6. Re1 {[%clk 0:03:05.9]} 6... d5 {[%clk 0:03:00.9]}
7. exd5 {[%clk 0:03:02.6]} 7... Nxd5 {[%clk 0:03:00.6]} 8. Nbd2 {[%clk 0:03:03]}
8... Be7 {[%clk 0:03:00.8]} 9. Ne4 {[%clk 0:03:02.4]} 9... Nd7 {[%clk
0:03:01.9]} 10. b3 {[%clk 0:03:02.2]} 10... O-O {[%clk 0:03:02.8]} 11. c4 {[%clk
0:03:02.3]} 11... bxc4 {[%clk 0:03:01.8]} 12. bxc4 {[%clk 0:03:03.6]} 12... N5f6
{[%clk 0:03:03.4]} 13. Qc2 {[%clk 0:03:01.1]} 13... h6 {[%clk 0:03:02.3]} 14.
Rb1 {[%clk 0:03:01.5]} 14... Rb8 {[%clk 0:02:59.6]} 15. Nxf6+ {[%clk 0:02:58.6]}
15... Nxf6 {[%clk 0:02:59.5]} 16. Bb2 {[%clk 0:02:50.2]} 16... Bxf3 {[%clk
0:02:57.5]} 17. gxf3 {[%clk 0:02:51.5]} 17... Bd6 {[%clk 0:02:58.7]} 18. Qe2
{[%clk 0:02:40.8]} 18... Nh5 {[%clk 0:02:40.3]} 19. Qe4 {[%clk 0:02:41.4]} 19...
g6 {[%clk 0:02:40.1]} 20. c5 {[%clk 0:02:42.5]} 20... Bf4 {[%clk 0:02:07.8]} 21.
Bc1 {[%clk 0:02:34.1]} 21... Rxb1 {[%clk 0:02:05.2]} 22. Bxb1 {[%clk 0:02:35.2]}
22... Bxc1 {[%clk 0:02:06]} 23. Rxc1 {[%clk 0:02:35]} 23... Qg5+ {[%clk
0:02:03.7]} 0-1

[Event "*** Titled Tuesday 3|2 Blitz"]
[Site "Chess.com"]
[Date "2016.07.05"]
[Round "9"]
[White "akinov-akinseye"]
[Black "ChessNinja48"]
[Result "1-0"]
[WhiteElo "1929"]
[BlackElo "2313"]
[TimeControl "180+2"]
[EndTime "18:50:12 PDT"]
[Termination "akinov-akinseye won by checkmate"]

1. e4 {[%clk 0:03:00.6]} 1... e5 {[%clk 0:02:55.2]} 2. Nf3 {[%clk 0:02:57.9]}
2... Nc6 {[%clk 0:02:56.1]} 3. d4 {[%clk 0:02:54.6]} 3... exd4 {[%clk
0:02:55.8]} 4. c3 {[%clk 0:02:52]} 4... d3 {[%clk 0:02:55.6]} 5. Bxd3 {[%clk
0:02:48.6]} 5... d6 {[%clk 0:02:56.5]} 6. O-O {[%clk 0:02:46.3]} 6... Bg4 {[%clk
0:02:56.7]} 7. h3 {[%clk 0:02:42.7]} 7... Bh5 {[%clk 0:02:57.1]} 8. Nbd2 {[%clk
0:02:39]} 8... Nf6 {[%clk 0:02:57.1]} 9. Qc2 {[%clk 0:02:34.1]} 9... Be7 {[%clk
0:02:57.9]} 10. Nd4 {[%clk 0:02:31.3]} 10... Nxd4 {[%clk 0:02:53.9]} 11. cxd4
{[%clk 0:02:28.1]} 11... O-O {[%clk 0:02:55.8]} 12. f4 {[%clk 0:02:25.5]} 12...
Re8 {[%clk 0:01:59.2]} 13. g4 {[%clk 0:02:18.4]} 13... Bxg4 {[%clk 0:01:59]} 14.
hxg4 {[%clk 0:02:15.7]} 14... Nxg4 {[%clk 0:02:00.9]} 15. Nf3 {[%clk 0:02:14.9]}
15... Bf6 {[%clk 0:01:45.5]} 16. e5 {[%clk 0:02:12.8]} 16... dxe5 {[%clk
0:01:46.2]} 17. Bxh7+ {[%clk 0:02:10.2]} 17... Kf8 {[%clk 0:01:30.7]} 18. fxe5
{[%clk 0:02:07.5]} 18... Bh4 {[%clk 0:01:30.9]} 19. Qc5+ {[%clk 0:02:03.1]}
19... Be7 {[%clk 0:01:27]} 20. Ng5 {[%clk 0:01:56.4]} 20... Nxe5 {[%clk
0:01:02.2]} 21. Ne6# {[%clk 0:01:50.2]} 1-0

[Event "*** Titled Tuesday 3|2 Blitz"]
[Site "Chess.com"]
[Date "2016.07.05"]
[Round "9"]
[White "GianmarcoVaR"]
[Black "MaestroASK"]
[Result "0-1"]
[WhiteElo "2422"]
[BlackElo "2501"]
[TimeControl "180+2"]
[EndTime "18:54:02 PDT"]
[Termination "MaestroASK won by resignation"]

1. d4 {[%clk 0:02:59]} 1... d6 {[%clk 0:03:00.5]} 2. c4 {[%clk 0:02:59]} 2... g6
{[%clk 0:03:01.7]} 3. Nf3 {[%clk 0:03:00.1]} 3... Bg7 {[%clk 0:03:01.7]} 4. g3
{[%clk 0:03:02]} 4... e5 {[%clk 0:03:02]} 5. Bg2 {[%clk 0:03:03.1]} 5... f6
{[%clk 0:03:02.3]} 6. O-O {[%clk 0:03:03.3]} 6... Nh6 {[%clk 0:03:03.3]} 7. Nc3
{[%clk 0:03:04]} 7... Nf7 {[%clk 0:03:04.2]} 8. e4 {[%clk 0:03:04.9]} 8... c6
{[%clk 0:03:04.8]} 9. Be3 {[%clk 0:03:06.3]} 9... Bh6 {[%clk 0:03:04.9]} 10.
Bxh6 {[%clk 0:03:06.1]} 10... Nxh6 {[%clk 0:03:05.8]} 11. c5 {[%clk 0:03:07.6]}
11... Nf7 {[%clk 0:03:06.3]} 12. cxd6 {[%clk 0:03:08.2]} 12... Qxd6 {[%clk
0:03:06.7]} 13. dxe5 {[%clk 0:03:08.4]} 13... Qxd1 {[%clk 0:03:06.8]} 14. Rfxd1
{[%clk 0:03:02.5]} 14... fxe5 {[%clk 0:03:06.7]} 15. Nd2 {[%clk 0:02:46.1]}
15... Be6 {[%clk 0:03:05.3]} 16. Nb3 {[%clk 0:02:45.9]} 16... Nd7 {[%clk
0:03:04.9]} 17. Rd2 {[%clk 0:02:46.5]} 17... Ke7 {[%clk 0:03:01.4]} 18. Na5
{[%clk 0:02:47.4]} 18... Rab8 {[%clk 0:03:00.1]} 19. Rad1 {[%clk 0:02:48.9]}
19... Rhc8 {[%clk 0:02:55.3]} 20. b4 {[%clk 0:02:48.5]} 20... Rc7 {[%clk
0:02:47.1]} 21. Nd5+ {[%clk 0:02:33.6]} 21... cxd5 {[%clk 0:02:30.6]} 22. exd5
{[%clk 0:02:35.5]} 22... Bg4 {[%clk 0:02:28.5]} 23. f3 {[%clk 0:02:36.5]} 23...
Bxf3 {[%clk 0:02:22.4]} 24. d6+ {[%clk 0:02:36.8]} 24... Nxd6 {[%clk 0:02:22.7]}
25. Bxf3 {[%clk 0:02:38.3]} 25... Nf5 {[%clk 0:02:17.3]} 26. Nb3 {[%clk
0:01:46.9]} 26... b6 {[%clk 0:02:08.2]} 27. g4 {[%clk 0:01:48]} 27... Ng7 {[%clk
0:01:55.1]} 28. Bc6 {[%clk 0:01:48.5]} 28... Nf6 {[%clk 0:01:49.3]} 29. b5
{[%clk 0:01:45.8]} 29... Ne6 {[%clk 0:01:44.3]} 30. h3 {[%clk 0:01:29.4]} 30...
Rd8 {[%clk 0:01:43.7]} 31. g5 {[%clk 0:01:15.4]} 31... Nh5 {[%clk 0:01:42.8]}
32. h4 {[%clk 0:00:59]} 32... Rxd2 {[%clk 0:01:31.1]} 33. Nxd2 {[%clk
0:01:00.1]} 33... Nd4 {[%clk 0:01:28.8]} 34. Nc4 {[%clk 0:01:01.2]} 34... Nxc6
{[%clk 0:01:21.7]} 35. bxc6 {[%clk 0:01:01.6]} 35... Rxc6 {[%clk 0:01:22.7]} 36.
Nxe5 {[%clk 0:01:02.7]} 36... Rd6 {[%clk 0:01:21.9]} 37. Rc1 {[%clk 0:00:54.4]}
37... Ke6 {[%clk 0:01:22.2]} 38. Nf3 {[%clk 0:00:53.2]} 38... Rd7 {[%clk
0:01:18.1]} 39. Kf2 {[%clk 0:00:52.3]} 39... Nf4 {[%clk 0:01:14]} 40. Ke3 {[%clk
0:00:53.5]} 40... Nd5+ {[%clk 0:01:13.5]} 41. Ke4 {[%clk 0:00:54.8]} 41... Nb4
{[%clk 0:01:09.6]} 42. a3 {[%clk 0:00:55.6]} 42... Na6 {[%clk 0:01:10.1]} 43.
Rc6+ {[%clk 0:00:54.9]} 43... Ke7 {[%clk 0:01:09]} 44. Ne5 {[%clk 0:00:26.4]}
44... Rd1 {[%clk 0:01:07.3]} 45. Rf6 {[%clk 0:00:24.9]} 45... Nc5+ {[%clk
0:01:04.9]} 46. Ke3 {[%clk 0:00:24.7]} 46... Re1+ {[%clk 0:01:04.4]} 47. Kd4
{[%clk 0:00:25.3]} 47... Rxe5 {[%clk 0:00:56.3]} 48. Kxe5 {[%clk 0:00:21.7]}
48... Nd7+ {[%clk 0:00:57.1]} 0-1

[Event "*** Titled Tuesday 3|2 Blitz"]
[Site "Chess.com"]
[Date "2016.07.05"]
[Round "9"]
[White "Sanan_Sjugirov"]
[Black "Hikaru"]
[Result "0-1"]
[WhiteElo "2689"]
[BlackElo "2984"]
[TimeControl "180+2"]
[EndTime "18:54:11 PDT"]
[Termination "Hikaru won on time"]

1. d4 {[%clk 0:03:01.9]} 1... Nf6 {[%clk 0:02:59.2]} 2. Nf3 {[%clk 0:03:03.2]}
2... e6 {[%clk 0:02:58.2]} 3. Bg5 {[%clk 0:03:04.3]} 3... h6 {[%clk 0:02:58.7]}
4. Bh4 {[%clk 0:03:05.2]} 4... b6 {[%clk 0:02:59.9]} 5. Nbd2 {[%clk 0:03:04.4]}
5... Bb7 {[%clk 0:03:00.9]} 6. e3 {[%clk 0:03:05.7]} 6... Be7 {[%clk 0:03:01.9]}
7. Bd3 {[%clk 0:03:06.1]} 7... g5 {[%clk 0:03:02.9]} 8. Bg3 {[%clk 0:03:06.9]}
8... g4 {[%clk 0:03:04.5]} 9. Ne5 {[%clk 0:02:31]} 9... h5 {[%clk 0:03:02.6]}
10. Rg1 {[%clk 0:02:19.3]} 10... d6 {[%clk 0:02:55.8]} 11. Nec4 {[%clk
0:02:19.9]} 11... h4 {[%clk 0:02:57.1]} 12. Bf4 {[%clk 0:02:20.7]} 12... Rg8
{[%clk 0:02:58.8]} 13. Qe2 {[%clk 0:02:02.5]} 13... Nc6 {[%clk 0:02:59.6]} 14.
c3 {[%clk 0:01:57.4]} 14... b5 {[%clk 0:02:49.7]} 15. Na3 {[%clk 0:01:58.2]}
15... a6 {[%clk 0:02:50.8]} 16. e4 {[%clk 0:01:48.3]} 16... e5 {[%clk
0:02:48.8]} 17. Be3 {[%clk 0:01:49.6]} 17... d5 {[%clk 0:02:45.7]} 18. Nc2
{[%clk 0:01:40.4]} 18... Qd7 {[%clk 0:02:27.5]} 19. O-O-O {[%clk 0:01:37.9]}
19... O-O-O {[%clk 0:02:28.5]} 20. f3 {[%clk 0:01:26.7]} 20... Qe6 {[%clk
0:02:26.4]} 21. Rge1 {[%clk 0:01:21.5]} 21... gxf3 {[%clk 0:02:24.2]} 22. gxf3
{[%clk 0:01:22.3]} 22... dxe4 {[%clk 0:02:25.8]} 23. fxe4 {[%clk 0:01:20.7]}
23... exd4 {[%clk 0:02:24.8]} 24. cxd4 {[%clk 0:01:20.1]} 24... Qxa2 {[%clk
0:02:25.5]} 25. d5 {[%clk 0:01:14.4]} 25... Na5 {[%clk 0:02:24.8]} 26. Nd4
{[%clk 0:01:08]} 26... Ng4 {[%clk 0:02:11.4]} 27. Bf4 {[%clk 0:01:02.8]} 27...
Bf6 {[%clk 0:02:05.6]} 28. N2f3 {[%clk 0:00:49.5]} 28... Rge8 {[%clk 0:01:35.7]}
29. Qc2 {[%clk 0:00:46.4]} 29... Nc4 {[%clk 0:01:33.7]} 30. Bxc4 {[%clk
0:00:43.3]} 30... Qxc4 {[%clk 0:01:35]} 31. Qxc4 {[%clk 0:00:39.3]} 31... bxc4
{[%clk 0:01:36.9]} 32. Rd2 {[%clk 0:00:33]} 32... Ne5 {[%clk 0:01:30.7]} 33.
Nxe5 {[%clk 0:00:33.3]} 33... Bxe5 {[%clk 0:01:32.6]} 34. Bxe5 {[%clk
0:00:33.1]} 34... Rxe5 {[%clk 0:01:34.5]} 35. Nf3 {[%clk 0:00:34]} 35... Rh5
{[%clk 0:01:36.2]} 36. Red1 {[%clk 0:00:19.8]} 36... Re8 {[%clk 0:01:34.3]} 37.
Rd4 {[%clk 0:00:20.5]} 37... a5 {[%clk 0:01:34.4]} 38. Rxc4 {[%clk 0:00:21]}
38... Ba6 {[%clk 0:01:35.6]} 39. Rc3 {[%clk 0:00:19.6]} 39... Rxe4 {[%clk
0:01:35.2]} 40. d6 {[%clk 0:00:20.3]} 40... Rc4 {[%clk 0:01:24.8]} 41. Rxc4
{[%clk 0:00:19.6]} 41... Bxc4 {[%clk 0:01:26.7]} 42. dxc7 {[%clk 0:00:14.9]}
42... Be2 {[%clk 0:01:16.2]} 43. Rd8+ {[%clk 0:00:14]} 43... Kxc7 {[%clk
0:01:17.8]} 44. Rf8 {[%clk 0:00:15.3]} 44... Bc4 {[%clk 0:01:19.5]} 45. Kd2
{[%clk 0:00:15.5]} 45... Bd5 {[%clk 0:01:19.3]} 46. Ke3 {[%clk 0:00:16.2]} 46...
Rf5 {[%clk 0:01:16.8]} 47. Nxh4 {[%clk 0:00:15.7]} 47... Rh5 {[%clk 0:01:17.9]}
48. Kd4 {[%clk 0:00:08.5]} 48... Kd7 {[%clk 0:01:04.7]} 0-1

[Event "*** Titled Tuesday 3|2 Blitz"]
[Site "Chess.com"]
[Date "2016.07.05"]
[Round "9"]
[White "RobertoJBM"]
[Black "Viaje"]
[Result "0-1"]
[WhiteElo "2278"]
[BlackElo "2187"]
[TimeControl "180+2"]
[EndTime "18:54:45 PDT"]
[Termination "Viaje won on time"]

1. d4 {[%clk 0:02:55.1]} 1... Nf6 {[%clk 0:03:00.4]} 2. c3 {[%clk 0:02:55.7]}
2... d5 {[%clk 0:03:00.2]} 3. Bg5 {[%clk 0:02:54.9]} 3... Ne4 {[%clk 0:02:59.4]}
4. Bf4 {[%clk 0:02:55.5]} 4... c5 {[%clk 0:02:59.4]} 5. e3 {[%clk 0:02:56.8]}
5... Nc6 {[%clk 0:02:58.9]} 6. Nd2 {[%clk 0:02:57.1]} 6... Bf5 {[%clk
0:02:57.6]} 7. Nxe4 {[%clk 0:02:51.9]} 7... Bxe4 {[%clk 0:02:58.2]} 8. Qb3
{[%clk 0:02:53]} 8... Qb6 {[%clk 0:02:57.9]} 9. dxc5 {[%clk 0:02:51.9]} 9...
Qxb3 {[%clk 0:02:58.5]} 10. axb3 {[%clk 0:02:53.8]} 10... e5 {[%clk 0:03:00.1]}
11. Bg3 {[%clk 0:02:50.7]} 11... Bxc5 {[%clk 0:03:00.7]} 12. Nf3 {[%clk
0:02:52.3]} 12... f6 {[%clk 0:02:57.8]} 13. Nd2 {[%clk 0:02:48.1]} 13... Bf5
{[%clk 0:02:55.4]} 14. b4 {[%clk 0:02:47]} 14... Bb6 {[%clk 0:02:48]} 15. Nb3
{[%clk 0:02:36.2]} 15... h5 {[%clk 0:02:34.4]} 16. h3 {[%clk 0:02:32.4]} 16...
h4 {[%clk 0:02:35.1]} 17. Bh2 {[%clk 0:02:33.5]} 17... Ke7 {[%clk 0:02:27.9]}
18. Be2 {[%clk 0:02:23.9]} 18... a5 {[%clk 0:02:20]} 19. bxa5 {[%clk 0:02:21.9]}
19... Nxa5 {[%clk 0:02:20.5]} 20. Nxa5 {[%clk 0:02:23]} 20... Bxa5 {[%clk
0:02:21.3]} 21. O-O {[%clk 0:02:24]} 21... Bc7 {[%clk 0:02:21.5]} 22. Rfd1
{[%clk 0:02:23.1]} 22... Be6 {[%clk 0:02:21.1]} 23. Bf3 {[%clk 0:02:21.4]} 23...
Rhd8 {[%clk 0:02:05.5]} 24. Kf1 {[%clk 0:02:20.9]} 24... Rxa1 {[%clk 0:01:53.4]}
25. Rxa1 {[%clk 0:02:22.8]} 25... Bb6 {[%clk 0:01:55]} 26. Ra4 {[%clk
0:02:16.6]} 26... g5 {[%clk 0:01:47.7]} 27. Ke1 {[%clk 0:02:13.4]} 27... Kd6
{[%clk 0:01:41.8]} 28. Kd2 {[%clk 0:01:59.1]} 28... Kc7 {[%clk 0:01:41.2]} 29.
Be2 {[%clk 0:01:52.1]} 29... Kc6 {[%clk 0:01:38.2]} 30. Bf3 {[%clk 0:01:49]}
30... Kb5 {[%clk 0:01:24.5]} 31. Rb4+ {[%clk 0:01:39.7]} 31... Kc5 {[%clk
0:01:25.6]} 32. Bg1 {[%clk 0:01:35.8]} 32... Ra8 {[%clk 0:01:19.4]} 33. Bd1
{[%clk 0:01:33.3]} 33... Ra1 {[%clk 0:01:16.8]} 34. e4 {[%clk 0:01:19.8]} 34...
d4 {[%clk 0:01:10.5]} 35. f3 {[%clk 0:01:18.8]} 35... Kc6 {[%clk 0:01:04]} 36.
Rxb6+ {[%clk 0:00:30.7]} 36... Kxb6 {[%clk 0:01:04.3]} 37. cxd4 {[%clk
0:00:32.3]} 37... Kc6 {[%clk 0:00:57.8]} 38. d5+ {[%clk 0:00:32.6]} 38... Bxd5
{[%clk 0:00:58.8]} 39. exd5+ {[%clk 0:00:34.5]} 39... Kxd5 {[%clk 0:01:00.7]}
40. Be3 {[%clk 0:00:33.7]} 40... Rb1 {[%clk 0:00:56.4]} 41. Bb3+ {[%clk
0:00:28.8]} 41... Kd6 {[%clk 0:00:56.9]} 42. Kc3 {[%clk 0:00:26.2]} 42... Re1
{[%clk 0:00:51.6]} 43. Kd3 {[%clk 0:00:19.8]} 43... Rb1 {[%clk 0:00:48.8]} 44.
Kc2 {[%clk 0:00:20.7]} 44... Re1 {[%clk 0:00:49.6]} 45. Kd2 {[%clk 0:00:18.1]}
45... Rb1 {[%clk 0:00:47.9]} 46. Bc2 {[%clk 0:00:16]} 46... Rxb2 {[%clk
0:00:47.7]} 47. Kc3 {[%clk 0:00:17.7]} 47... Rb5 {[%clk 0:00:45.7]} 48. Bb3
{[%clk 0:00:13.5]} 48... Ra5 {[%clk 0:00:44]} 49. Kb4 {[%clk 0:00:11.5]} 49...
Ra1 {[%clk 0:00:44.5]} 50. Bc5+ {[%clk 0:00:12.1]} 50... Kd7 {[%clk 0:00:45.1]}
51. Bd5 {[%clk 0:00:08.8]} 51... b6 {[%clk 0:00:42.1]} 52. Bxb6 {[%clk
0:00:07.4]} 52... Rb1+ {[%clk 0:00:41.9]} 53. Ka5 {[%clk 0:00:08.6]} 53... Rb2
{[%clk 0:00:39.9]} 0-1

[Event "*** Titled Tuesday 3|2 Blitz"]
[Site "Chess.com"]
[Date "2016.07.05"]
[Round "9"]
[White "IamSchrodingersCat"]
[Black "GeorgMeier"]
[Result "1/2-1/2"]
[WhiteElo "2248"]
[BlackElo "2627"]
[TimeControl "180+2"]
[EndTime "18:55:28 PDT"]
[Termination "Game drawn - insufficient material"]

1. e4 {[%clk 0:03:01.9]} 1... e6 {[%clk 0:03:01.9]} 2. d4 {[%clk 0:03:01.4]}
2... d5 {[%clk 0:03:03.8]} 3. Nc3 {[%clk 0:03:01.5]} 3... dxe4 {[%clk
0:02:56.2]} 4. Nxe4 {[%clk 0:03:03.4]} 4... Nd7 {[%clk 0:02:58.1]} 5. Nf3 {[%clk
0:03:03.5]} 5... Ngf6 {[%clk 0:03:00]} 6. Bg5 {[%clk 0:03:03.5]} 6... h6 {[%clk
0:03:00.9]} 7. Bh4 {[%clk 0:03:04.1]} 7... Be7 {[%clk 0:03:01.2]} 8. Nxf6+
{[%clk 0:03:04.3]} 8... Bxf6 {[%clk 0:03:03.1]} 9. Bxf6 {[%clk 0:03:04.1]} 9...
Nxf6 {[%clk 0:03:02.8]} 10. Bd3 {[%clk 0:02:58.9]} 10... c5 {[%clk 0:02:51.1]}
11. dxc5 {[%clk 0:02:53.1]} 11... Qa5+ {[%clk 0:02:51.7]} 12. Qd2 {[%clk
0:02:53.8]} 12... Qxc5 {[%clk 0:02:52.2]} 13. O-O {[%clk 0:02:49.7]} 13... O-O
{[%clk 0:02:52.7]} 14. Qe2 {[%clk 0:02:33.2]} 14... b6 {[%clk 0:02:52.2]} 15. c3
{[%clk 0:02:22.3]} 15... Bb7 {[%clk 0:02:52.1]} 16. Rad1 {[%clk 0:02:22.7]}
16... Rfd8 {[%clk 0:02:51]} 17. Bc2 {[%clk 0:02:20.9]} 17... Rac8 {[%clk
0:02:49]} 18. Rxd8+ {[%clk 0:02:12.3]} 18... Rxd8 {[%clk 0:02:50.9]} 19. Rd1
{[%clk 0:02:13.6]} 19... Rd5 {[%clk 0:02:52]} 20. a3 {[%clk 0:02:08.1]} 20...
Kf8 {[%clk 0:02:44.9]} 21. Nd4 {[%clk 0:01:43.6]} 21... Re5 {[%clk 0:02:20.6]}
22. Qd2 {[%clk 0:01:26.2]} 22... Rg5 {[%clk 0:02:21.5]} 23. f3 {[%clk
0:01:06.4]} 23... Rd5 {[%clk 0:02:19.2]} 24. Qf2 {[%clk 0:01:00.6]} 24... g6
{[%clk 0:02:06.8]} 25. Nb3 {[%clk 0:00:44.9]} 25... Qxf2+ {[%clk 0:02:00.1]} 26.
Kxf2 {[%clk 0:00:43.4]} 26... Ke7 {[%clk 0:02:01.7]} 27. Rxd5 {[%clk 0:00:43]}
27... Bxd5 {[%clk 0:02:03.6]} 28. Nd4 {[%clk 0:00:43.1]} 28... e5 {[%clk
0:02:03.3]} 29. Ne2 {[%clk 0:00:39]} 29... Ne8 {[%clk 0:01:37.5]} 30. Bd3 {[%clk
0:00:31.3]} 30... Nd6 {[%clk 0:01:37.4]} 31. Ke3 {[%clk 0:00:32.5]} 31... Ke6
{[%clk 0:01:38]} 32. g3 {[%clk 0:00:30.6]} 32... f5 {[%clk 0:01:38.5]} 33. f4
{[%clk 0:00:31]} 33... g5 {[%clk 0:01:39.3]} 34. b4 {[%clk 0:00:09.2]} 34... Bc4
{[%clk 0:01:36]} 35. fxe5 {[%clk 0:00:06.7]} 35... Kxe5 {[%clk 0:01:36.7]} 36.
Nd4 {[%clk 0:00:05]} 36... Bxd3 {[%clk 0:01:23.7]} 37. Kxd3 {[%clk 0:00:05.9]}
37... Kd5 {[%clk 0:01:25.2]} 38. c4+ {[%clk 0:00:03.6]} 38... Nxc4 {[%clk
0:01:23.4]} 39. Nxf5 {[%clk 0:00:05.1]} 39... Ne5+ {[%clk 0:01:20.8]} 40. Kc3
{[%clk 0:00:03.9]} 40... h5 {[%clk 0:01:21.9]} 41. h4 {[%clk 0:00:04]} 41... g4
{[%clk 0:01:15.2]} 42. Ng7 {[%clk 0:00:05]} 42... Ke4 {[%clk 0:01:12.9]} 43.
Nxh5 {[%clk 0:00:06]} 43... Kf3 {[%clk 0:01:11.9]} 44. Kd4 {[%clk 0:00:05.9]}
44... Ng6 {[%clk 0:01:03.9]} 45. Kd5 {[%clk 0:00:06]} 45... Ne7+ {[%clk
0:00:58.3]} 46. Ke6 {[%clk 0:00:04.7]} 46... Nc6 {[%clk 0:00:58.4]} 47. Nf6
{[%clk 0:00:04.6]} 47... Kxg3 {[%clk 0:00:56.4]} 48. h5 {[%clk 0:00:06]} 48...
Nd4+ {[%clk 0:00:57.5]} 49. Kd5 {[%clk 0:00:05.4]} 49... Nf5 {[%clk 0:00:58.2]}
50. Nxg4 {[%clk 0:00:04.8]} 50... Kxg4 {[%clk 0:00:59]} 51. h6 {[%clk
0:00:05.5]} 51... Nxh6 {[%clk 0:00:59.2]} 52. Kc6 {[%clk 0:00:07.4]} 52... Nf5
{[%clk 0:00:55.9]} 53. Kb7 {[%clk 0:00:08.4]} 53... b5 {[%clk 0:00:54.4]} 54.
Kxa7 {[%clk 0:00:06.8]} 54... Kf4 {[%clk 0:00:55.7]} 55. Ka6 {[%clk 0:00:08.1]}
55... Nd4 {[%clk 0:00:56.8]} 56. Ka5 {[%clk 0:00:08.4]} 56... Ke4 {[%clk
0:00:58.2]} 57. a4 {[%clk 0:00:09.7]} 57... bxa4 {[%clk 0:01:00.1]} 58. Kxa4
{[%clk 0:00:11.6]} 58... Kd5 {[%clk 0:00:56.3]} 59. b5 {[%clk 0:00:13.5]} 59...
Kc5 {[%clk 0:00:57.7]} 60. b6 {[%clk 0:00:14.1]} 60... Kxb6 {[%clk 0:00:58.3]}
1/2-1/2

[Event "*** Titled Tuesday 3|2 Blitz"]
[Site "Chess.com"]
[Date "2016.07.05"]
[Round "9"]
[White "simplerXiao"]
[Black "proxy6"]
[Result "0-1"]
[WhiteElo "2273"]
[BlackElo "1966"]
[TimeControl "180+2"]
[EndTime "18:55:32 PDT"]
[Termination "proxy6 won by resignation"]

1. Nf3 {[%clk 0:03:01.9]} 1... Nf6 {[%clk 0:02:58.6]} 2. b4 {[%clk 0:02:58.1]}
2... e6 {[%clk 0:02:58.5]} 3. a3 {[%clk 0:02:56.5]} 3... d5 {[%clk 0:02:57.1]}
4. Bb2 {[%clk 0:02:57.5]} 4... Be7 {[%clk 0:02:58.2]} 5. e3 {[%clk 0:02:58.7]}
5... O-O {[%clk 0:02:58.3]} 6. c4 {[%clk 0:03:00.3]} 6... a5 {[%clk 0:02:57.2]}
7. b5 {[%clk 0:03:01.2]} 7... c6 {[%clk 0:02:57.7]} 8. Be2 {[%clk 0:02:58.8]}
8... Bd7 {[%clk 0:02:57.5]} 9. a4 {[%clk 0:02:58.3]} 9... b6 {[%clk 0:02:39.6]}
10. Ne5 {[%clk 0:02:57.3]} 10... Ra7 {[%clk 0:02:33.4]} 11. O-O {[%clk
0:02:51.8]} 11... Bd6 {[%clk 0:02:22.7]} 12. f4 {[%clk 0:02:44.4]} 12... cxb5
{[%clk 0:02:17.8]} 13. cxb5 {[%clk 0:02:42.7]} 13... Qe7 {[%clk 0:02:16.4]} 14.
Bd3 {[%clk 0:02:36.4]} 14... Ne4 {[%clk 0:02:08.8]} 15. Nc3 {[%clk 0:02:36.3]}
15... Nc5 {[%clk 0:01:57.6]} 16. Bc2 {[%clk 0:02:36.5]} 16... f6 {[%clk
0:01:58]} 17. Nxd7 {[%clk 0:02:36]} 17... Nbxd7 {[%clk 0:01:56.9]} 18. d4 {[%clk
0:02:34.9]} 18... Nb7 {[%clk 0:01:52.7]} 19. Bb3 {[%clk 0:02:36.1]} 19... Nd8
{[%clk 0:01:50.9]} 20. e4 {[%clk 0:02:35.1]} 20... dxe4 {[%clk 0:01:48.7]} 21.
f5 {[%clk 0:02:35.8]} 21... Kh8 {[%clk 0:01:46]} 22. Nxe4 {[%clk 0:02:35.8]}
22... exf5 {[%clk 0:01:42.4]} 23. Nxd6 {[%clk 0:02:36.7]} 23... Qxd6 {[%clk
0:01:41.3]} 24. Rxf5 {[%clk 0:02:38.3]} 24... Re8 {[%clk 0:01:29.7]} 25. Rh5
{[%clk 0:02:32.7]} 25... Ne6 {[%clk 0:01:06]} 26. Qd3 {[%clk 0:02:21.4]} 26...
Ndf8 {[%clk 0:00:54.6]} 27. Ba3 {[%clk 0:02:05.8]} 27... Qxd4+ {[%clk
0:00:54.3]} 28. Qxd4 {[%clk 0:02:03.3]} 28... Nxd4 {[%clk 0:00:56.2]} 29. Bd5
{[%clk 0:01:54.3]} 29... Ne2+ {[%clk 0:00:53.1]} 30. Kf2 {[%clk 0:01:50.4]}
30... Nf4 {[%clk 0:00:46.8]} 31. Rf5 {[%clk 0:01:50.5]} 31... N8g6 {[%clk
0:00:36.4]} 32. Bf3 {[%clk 0:01:45.7]} 32... Nd3+ {[%clk 0:00:31.1]} 33. Kg3
{[%clk 0:01:46.3]} 33... Nge5 {[%clk 0:00:28]} 34. Be4 {[%clk 0:01:40.4]} 34...
Rc7 {[%clk 0:00:21.6]} 35. Bd6 {[%clk 0:01:37.2]} 35... Rc3 {[%clk 0:00:21.9]}
36. Ra3 {[%clk 0:01:36.1]} 36... Rec8 {[%clk 0:00:19.5]} 37. Kh4 {[%clk
0:01:09.3]} 37... g5+ {[%clk 0:00:14.3]} 38. Kh5 {[%clk 0:01:06]} 38... Nf4+
{[%clk 0:00:12]} 39. Rxf4 {[%clk 0:01:05.3]} 39... gxf4 {[%clk 0:00:13.9]} 40.
Ra1 {[%clk 0:00:57.1]} 40... Kg7 {[%clk 0:00:13.3]} 41. Bf5 {[%clk 0:00:55]}
41... Rd8 {[%clk 0:00:12]} 42. Be7 {[%clk 0:00:54.1]} 42... Re8 {[%clk
0:00:11.4]} 43. Ba3 {[%clk 0:00:52.2]} 43... Nc4 {[%clk 0:00:11.7]} 44. Bc1
{[%clk 0:00:50.3]} 44... Re5 {[%clk 0:00:12.4]} 45. Kg4 {[%clk 0:00:49.7]} 45...
Ne3+ {[%clk 0:00:13.4]} 46. Bxe3 {[%clk 0:00:49]} 46... fxe3 {[%clk 0:00:15.3]}
47. Re1 {[%clk 0:00:48.8]} 47... e2 {[%clk 0:00:15.9]} 48. Bd7 {[%clk
0:00:47.1]} 48... Ra3 {[%clk 0:00:17.2]} 49. h4 {[%clk 0:00:34.1]} 49... Rxa4+
{[%clk 0:00:18.4]} 50. Kf3 {[%clk 0:00:34.6]} 50... Ra3+ {[%clk 0:00:18]} 51.
Kf4 {[%clk 0:00:35.3]} 51... Rb3 {[%clk 0:00:17]} 52. g4 {[%clk 0:00:35.6]}
52... Rb4+ {[%clk 0:00:15.9]} 53. Kf3 {[%clk 0:00:36.3]} 53... a4 {[%clk
0:00:12.1]} 54. h5 {[%clk 0:00:37.4]} 54... a3 {[%clk 0:00:12.5]} 55. Bf5 {[%clk
0:00:38.5]} 55... a2 {[%clk 0:00:13.1]} 56. Rc1 {[%clk 0:00:36.2]} 56... Rc5
{[%clk 0:00:11]} 57. Re1 {[%clk 0:00:34]} 57... Ra4 {[%clk 0:00:09.6]} 58. Rxe2
{[%clk 0:00:34.4]} 58... Re5 {[%clk 0:00:09.5]} 59. Rc2 {[%clk 0:00:32.7]} 59...
a1=Q {[%clk 0:00:09.4]} 60. Rc7+ {[%clk 0:00:33.7]} 60... Kf8 {[%clk 0:00:10]}
61. Rc8+ {[%clk 0:00:35]} 61... Ke7 {[%clk 0:00:11.3]} 62. Rc7+ {[%clk
0:00:36.3]} 62... Kd6 {[%clk 0:00:12.8]} 63. Rc6+ {[%clk 0:00:37.4]} 63... Kd5
{[%clk 0:00:13.2]} 64. Bd3 {[%clk 0:00:37.3]} 64... Qd4 {[%clk 0:00:12.4]} 65.
Bc4+ {[%clk 0:00:29.1]} 65... Rxc4 {[%clk 0:00:11.8]} 0-1